fUST/lending_fUST_20260116
["ID","MTS","AMOUNT","RATE_DAILY","PERIOD"]
[402052826,1768498251190,-500.0,0.00021917,2]
[402052827,1768498251199,-500.0,0.00021917,2]
[402052828,1768498251208,-500.0,0.00021917,2]
[402052829,1768498251218,-500.0,0.00021917,2]
[402052830,1768498251227,-565.51,0.00021917,2]
[402052831,1768498251236,-500.0,0.00021917,2]
[402052832,1768498251246,-510.57835333,0.00021917,2]
[402052833,1768498251255,-500.0,0.00021917,2]
[402052834,1768498251264,-500.0,0.00021917,2]
[402052835,1768498251274,-500.0,0.00021917,2]
[402052836,1768498251284,-673.83,0.00021917,2]
[402052837,1768498251293,-500.0,0.00021917,2]
[402052838,1768498251303,-845.24,0.00021917,2]
[402052839,1768498251313,-500.0,0.00021917,2]
[402052840,1768498251323,-500.0,0.00021917,2]
[402052841,1768498251332,-500.0,0.00021917,2]
[402052842,1768498251341,-816.59,0.00021917,2]
[402052843,1768498251351,-615.58,0.00021917,2]
[402052844,1768498251359,-500.0,0.00021917,2]
[402052845,1768498251369,-657.28,0.00021917,2]
[402052846,1768498251378,-500.0,0.00021917,2]
[402052847,1768498251387,-206.72945588,0.00021917,2]
[402052848,1768498251397,-985.63,0.00021917,2]
[402052849,1768498251406,-752.46,0.00021917,2]
[402052850,1768498251416,-500.0,0.00021917,2]
[402052851,1768498251426,-602.8,0.00021917,2]
[402052852,1768498251438,-522.45106523,0.00021917,2]
[402052853,1768498251448,-2146.17,0.00021917,2]
[402052854,1768498251457,-500.0,0.00021917,2]
[402052855,1768498251467,-500.0,0.00021917,2]
[402052856,1768498251478,-500.0,0.00021917,2]
[402052857,1768498251487,-500.0,0.00021917,2]
[402052858,1768498251497,-500.0,0.00021917,2]
[402052859,1768498251508,-355.96378196,0.00021917,2]
[402052860,1768498251518,-500.0,0.00021917,2]
[402052861,1768498251527,-1853.74,0.00021917,2]
[402052862,1768498251537,-500.0,0.00021917,2]
[402052863,1768498251547,-510.35756485,0.00021917,2]
[402052864,1768498251557,-500.0,0.00021917,2]
[402052865,1768498251568,-500.0,0.00021917,2]
[402052866,1768498251578,-500.0,0.00021917,2]
[402052867,1768498251587,-627.87,0.00021917,2]
[402052868,1768498251597,-500.0,0.00021917,2]
[402052869,1768498251607,-500.0,0.00021917,2]
[402052870,1768498251616,-967.55,0.00021917,2]
[402052871,1768498251626,-1291.69,0.00021917,2]
[402052872,1768498251635,-500.0,0.00021917,2]
[402052873,1768498251645,-1263.42,0.00021917,2]
[402052874,1768498251654,-500.0,0.00021917,2]
[402052875,1768498251664,-1118.51,0.00021917,2]
[402052876,1768498251674,-500.0,0.00021917,2]
[402052877,1768498251683,-722.98,0.00021917,2]
[402052878,1768498251692,-500.0,0.00021917,2]
[402052879,1768498251702,-500.0,0.00021917,2]
[402052880,1768498251711,-500.0,0.00021917,2]
[402052881,1768498251721,-602.9,0.00021917,2]
[402052882,1768498251731,-685.26,0.00021917,2]
[402052883,1768498251741,-500.0,0.00021917,2]
[402052884,1768498251750,-500.0,0.00021917,2]
[402052885,1768498251760,-500.0,0.00021917,2]
[402052886,1768498251769,-500.0,0.00021917,2]
[402052887,1768498251779,-500.0,0.00021917,2]
[402052888,1768498251788,-509.19,0.00021917,2]
[402052889,1768498251798,-506.46388091,0.00021917,2]
[402052890,1768498251808,-1720.19445087,0.00021917,2]
[402052891,1768498251819,-1057.57,0.00021917,2]
[402052892,1768498251829,-500.0,0.00021917,2]
[402052893,1768498251839,-374.84587832,0.00021917,2]
[402052894,1768498251849,-500.0,0.00021917,2]
[402052895,1768498251859,-500.0,0.00021917,2]
[402052896,1768498251869,-500.0,0.00021917,2]
[402052897,1768498251879,-1364.64,0.00021917,2]
[402052898,1768498251888,-500.0,0.00021917,2]
[402052899,1768498251898,-6947.95,0.00021917,2]
[402052900,1768498251907,-500.0,0.00021917,2]
[402052901,1768498251917,-500.0,0.00021917,2]
[402052902,1768498251926,-500.0,0.00021917,2]
[402052903,1768498251936,-500.0,0.00021917,2]
[402052904,1768498251945,-1263.79,0.00021917,2]
[402052905,1768498251955,-1481.54,0.00021917,2]
[402052906,1768498251964,-512.62114639,0.00021917,2]
[402052907,1768498251973,-500.0,0.00021917,2]
[402052908,1768498251983,-500.0,0.00021917,2]
[402052909,1768498251992,-500.0,0.00021917,2]
[402052910,1768498252002,-500.0,0.00021917,2]
[402052911,1768498252012,-848.98,0.00021917,2]
[402052912,1768498252022,-1974.62,0.00021917,2]
[402052913,1768498252032,-500.0,0.00021917,2]
[402052914,1768498252042,-500.0,0.00021917,2]
[402052915,1768498252051,-2980.84,0.00021917,2]
[402052916,1768498252062,-500.0,0.00021917,2]
[402052917,1768498252072,-627.8,0.00021917,2]
[402052918,1768498252081,-500.0,0.00021917,2]
[402052919,1768498252091,-500.0,0.00021917,2]
[402052920,1768498252100,-500.0,0.00021917,2]
[402052921,1768498252111,-500.0,0.00021917,2]
[402052922,1768498252121,-500.0,0.00021917,2]
[402052923,1768498252130,-1186.72,0.00021917,2]
[402052924,1768498252140,-500.0,0.00021917,2]
[402052925,1768498252150,-500.0,0.00021917,2]
[402052926,1768498252162,-553.7,0.00021917,2]
[402052927,1768498252183,-500.0,0.00021917,2]
[402052928,1768498252204,-500.0,0.00021917,2]
[402052929,1768498252225,-500.0,0.00021917,2]
[402052930,1768498252237,-2106.67,0.00021917,2]
[402052931,1768498252249,-500.0,0.00021917,2]
[402052932,1768498252259,-676.04,0.00021917,2]
[402052933,1768498252269,-1933.29,0.00021917,2]
[402052934,1768498252280,-500.0,0.00021917,2]
[402052935,1768498252290,-500.0,0.00021917,2]
[402052936,1768498252300,-512.38113308,0.00021917,2]
[402052937,1768498252309,-500.0,0.00021917,2]
[402052938,1768498252320,-971.82,0.00021917,2]
[402052939,1768498252329,-502.05866103,0.00021917,2]
[402052940,1768498252340,-768.08,0.00021917,2]
[402052941,1768498252350,-500.0,0.00021917,2]
[402052942,1768498252359,-1177.22,0.00021917,2]
[402052943,1768498252369,-500.0,0.00021917,2]
[402052944,1768498252379,-675.03,0.00021917,2]
[402052945,1768498252389,-500.0,0.00021917,2]
[402052946,1768498252399,-500.0,0.00021917,2]
[402052947,1768498252409,-500.0,0.00021917,2]
[402052948,1768498252419,-500.0,0.00021917,2]
[402052949,1768498252432,-503.94,0.00021917,2]
[402052950,1768498252443,-513.28277488,0.00021917,2]
[402052951,1768498252453,-500.0,0.00021917,2]
[402052952,1768498252462,-500.0,0.00021917,2]
[402052953,1768498252473,-500.0,0.00021917,2]
[402052954,1768498252482,-884.51,0.00021917,2]
[402052955,1768498252492,-513.67,0.00021917,2]
[402052956,1768498252501,-1018.79,0.00021917,2]
[402052957,1768498252514,-1000.0,0.00021917,2]
[402052958,1768498252524,-500.0,0.00021917,2]
[402052959,1768498252534,-500.0,0.00021917,2]
[402052960,1768498252543,-500.0,0.00021917,2]
[402052961,1768498252554,-500.0,0.00021917,2]
[402052962,1768498252563,-500.0,0.00021917,2]
[402052963,1768498252573,-500.0,0.00021917,2]
[402052964,1768498252582,-500.0,0.00021917,2]
[402052965,1768498252592,-961.11,0.00021917,2]
[402052966,1768498252601,-1015.23,0.00021917,2]
[402052967,1768498252612,-674.95,0.00021917,2]
[402052968,1768498252621,-500.0,0.00021917,2]
[402052969,1768498252631,-525.55,0.00021917,2]
[402052970,1768498252641,-500.0,0.00021917,2]
[402052971,1768498252651,-500.0,0.00021917,2]
[402052972,1768498252660,-1469.61,0.00021917,2]
[402052973,1768498252670,-500.0,0.00021917,2]
[402052974,1768498252680,-500.0,0.00021917,2]
[402052975,1768498252690,-1622.67,0.00021917,2]
[402052976,1768498252699,-513.21338468,0.00021917,2]
[402052977,1768498252709,-1527.06,0.00021917,2]
[402052978,1768498252719,-1181.65,0.00021917,2]
[402052979,1768498252728,-500.0,0.00021917,2]
[402052980,1768498252738,-897.56,0.00021917,2]
[402052981,1768498252748,-500.0,0.00021917,2]
[402052982,1768498252758,-500.0,0.00021917,2]
[402052983,1768498252768,-507.15,0.00021917,2]
[402052984,1768498252777,-523.93201199,0.00021917,2]
[402052985,1768498252787,-500.0,0.00021917,2]
[402052986,1768498252796,-500.0,0.00021917,2]
[402052987,1768498252806,-1158.8,0.00021917,2]
[402052988,1768498252816,-500.0,0.00021917,2]
[402052989,1768498252826,-500.0,0.00021917,2]
[402052990,1768498252836,-500.0,0.00021917,2]
[402052991,1768498252846,-502.53161961,0.00021917,2]
[402052992,1768498252855,-500.0,0.00021917,2]
[402052993,1768498252865,-631.29,0.00021917,2]
[402052994,1768498252874,-500.0,0.00021917,2]
[402052995,1768498252884,-2101.27,0.00021917,2]
[402052996,1768498252893,-1696.88,0.00021917,2]
[402052997,1768498252904,-500.0,0.00021917,2]
[402052998,1768498252913,-614.98188956,0.00021917,2]
[402052999,1768498252923,-1092.3,0.00021917,2]
[402053000,1768498252933,-500.0,0.00021917,2]
[402053001,1768498252943,-500.0,0.00021917,2]
[402053002,1768498252952,-500.0,0.00021917,2]
[402053003,1768498252963,-841.31,0.00021917,2]
[402053004,1768498252972,-1000.0,0.00021917,2]
[402053005,1768498252981,-500.0,0.00021917,2]
[402053006,1768498252991,-546.41,0.00021917,2]
[402053007,1768498253001,-2080.15,0.00021917,2]
[402053008,1768498253011,-1593.41,0.00021917,2]
[402053009,1768498253021,-500.0,0.00021917,2]
[402053010,1768498253030,-500.0,0.00021917,2]
[402053011,1768498253040,-500.0,0.00021917,2]
[402053012,1768498253051,-500.0,0.00021917,2]
[402053013,1768498253060,-500.0,0.00021917,2]
[402053014,1768498253070,-853.57,0.00021917,2]
[402053015,1768498253080,-1543.57,0.00021917,2]
[402053016,1768498253091,-500.0,0.00021917,2]
[402053017,1768498253101,-500.0,0.00021917,2]
[402053018,1768498253111,-1568.29,0.00021917,2]
[402053019,1768498253120,-500.0,0.00021917,2]
[402053020,1768498253130,-500.0,0.00021917,2]
[402053021,1768498253139,-500.0,0.00021917,2]
[402053022,1768498253149,-896.92,0.00021917,2]
[402053023,1768498253159,-500.0,0.00021917,2]
[402053024,1768498253169,-1386.68,0.00021917,2]
[402053025,1768498253429,-500.0,0.00021917,2]
[402053026,1768498253441,-501.13,0.00021917,2]
[402053027,1768498253451,-842.69,0.00021917,2]
[402053028,1768498253460,-500.0,0.00021917,2]
[402053029,1768498253471,-500.0,0.00021917,2]
[402053030,1768498253480,-1160.36,0.00021917,2]
[402053031,1768498253489,-500.0,0.00021917,2]
[402053032,1768498253499,-500.0,0.00021917,2]
[402053033,1768498253508,-500.0,0.00021917,2]
[402053034,1768498253518,-500.0,0.00021917,2]
[402053035,1768498253527,-500.0,0.00021917,2]
[402053036,1768498253537,-500.0,0.00021917,2]
[402053037,1768498253547,-500.0,0.00021917,2]
[402053038,1768498253556,-527.99763591,0.00021917,2]
[402053039,1768498253567,-500.0,0.00021917,2]
[402053040,1768498253577,-500.0,0.00021917,2]
[402053041,1768498253586,-500.0,0.00021917,2]
[402053042,1768498253596,-823.29,0.00021917,2]
[402053043,1768498253606,-500.0,0.00021917,2]
[402053044,1768498253616,-500.0,0.00021917,2]
[402053045,1768498253626,-863.28,0.00021917,2]
[402053046,1768498253635,-500.0,0.00021917,2]
[402053047,1768498253645,-500.0,0.00021917,2]
[402053048,1768498253655,-478.16533018,0.00021917,2]
[402053049,1768498253664,-500.0,0.00021917,2]
[402053050,1768498253674,-1070.45,0.00021917,2]
[402053051,1768498253683,-500.0,0.00021917,2]
[402053052,1768498253693,-500.0,0.00021917,2]
[402053053,1768498253702,-500.0,0.00021917,2]
[402053054,1768498253712,-500.0,0.00021917,2]
[402053055,1768498253721,-536.84611683,0.00021917,2]
[402053056,1768498253731,-500.0,0.00021917,2]
[402053057,1768498253740,-538.33,0.00021917,2]
[402053058,1768498253750,-822.22,0.00021917,2]
[402053059,1768498253759,-500.0,0.00021917,2]
[402053060,1768498253770,-500.0,0.00021917,2]
[402053061,1768498253779,-500.0,0.00021917,2]
[402053062,1768498253789,-571.51167908,0.00021917,2]
[402053063,1768498253798,-500.0,0.00021917,2]
[402053064,1768498253807,-745.33,0.00021917,2]
[402053065,1768498253818,-500.0,0.00021917,2]
[402053066,1768498253828,-534.98317174,0.00021917,2]
[402053067,1768498253837,-840.17,0.00021917,2]
[402053068,1768498253847,-500.0,0.00021917,2]
[402053069,1768498253856,-883.79,0.00021917,2]
[402053070,1768498253866,-1697.06,0.00021917,2]
[402053071,1768498253876,-500.0,0.00021917,2]
[402053072,1768498253886,-500.0,0.00021917,2]
[402053073,1768498253896,-500.0,0.00021917,2]
[402053074,1768498253905,-500.0,0.00021917,2]
[402053075,1768498253915,-641.85,0.00021917,2]
[402053076,1768498253926,-1683.36,0.00021917,2]
[402053077,1768498253937,-500.0,0.00021917,2]
[402053078,1768498253947,-500.0,0.00021917,2]
[402053079,1768498253957,-500.0,0.00021917,2]
[402053080,1768498253969,-500.0,0.00021917,2]
[402053081,1768498253980,-1793.27,0.00021917,2]
[402053082,1768498253990,-500.0,0.00021917,2]
[402053083,1768498254000,-617.2,0.00021917,2]
[402053084,1768498254010,-500.0,0.00021917,2]
[402053085,1768498254021,-434.12749926,0.00021917,2]
[402053086,1768498254030,-500.0,0.00021917,2]
[402053087,1768498254039,-1783.64,0.00021917,2]
[402053088,1768498254049,-519.12,0.00021917,2]
[402053089,1768498254059,-734.85,0.00021917,2]
[402053090,1768498254070,-891.64,0.00021917,2]
[402053091,1768498254079,-500.0,0.00021917,2]
[402053092,1768498254091,-672.38,0.00021917,2]
[402053093,1768498254101,-500.0,0.00021917,2]
[402053094,1768498254110,-1186.18,0.00021917,2]
[402053095,1768498254120,-500.0,0.00021917,2]
[402053096,1768498254130,-500.0,0.00021917,2]
[402053097,1768498254139,-1250.8,0.00021917,2]
[402053098,1768498254149,-500.0,0.00021917,2]
[402053099,1768498254159,-1000.78,0.00021917,2]
[402053100,1768498254168,-500.0,0.00021917,2]
[402053101,1768498254178,-500.0,0.00021917,2]
[402053102,1768498254189,-1550.29,0.00021917,2]
[402053103,1768498254198,-500.0,0.00021917,2]
[402053104,1768498254208,-513.05,0.00021917,2]
[402053105,1768498254218,-500.0,0.00021917,2]
[402053106,1768498254227,-500.0,0.00021917,2]
[402053107,1768498254238,-500.0,0.00021917,2]
[402053108,1768498254247,-500.0,0.00021917,2]
[402053109,1768498254257,-500.0,0.00021917,2]
[402053110,1768498254267,-1065.48,0.00021917,2]
[402053111,1768498254276,-2666.01,0.00021917,2]
[402053112,1768498254286,-978.61,0.00021917,2]
[402053113,1768498254296,-500.0,0.00021917,2]
[402053114,1768498254305,-2228.74,0.00021917,2]
[402053115,1768498254315,-870.35,0.00021917,2]
[402053116,1768498254325,-500.0,0.00021917,2]
[402053117,1768498254335,-508.44027865,0.00021917,2]
[402053118,1768498254345,-1994.13,0.00021917,2]
[402053119,1768498254355,-2173.18,0.00021917,2]
[402053120,1768498254364,-568.64,0.00021917,2]
[402053121,1768498254373,-627.64,0.00021917,2]
[402053122,1768498254383,-1194.76,0.00021917,2]
[402053123,1768498254393,-500.0,0.00021917,2]
[402053124,1768498254402,-761.82,0.00021917,2]
[402053125,1768498254411,-716.54,0.00021917,2]
[402053126,1768498254421,-715.3,0.00021917,2]
[402053127,1768498254434,-500.0,0.00021917,2]
[402053128,1768498254443,-327.26386343,0.00021917,2]
[402053129,1768498255600,-172.73613657,0.00021917,2]
[402053130,1768498255610,-500.0,0.00021917,2]
[402053131,1768498255619,-125.63359284,0.00021917,2]
[402053132,1768498255630,-374.36640716,0.00021917,2]
[402053133,1768498255639,-500.0,0.00021917,2]
[402053134,1768498255649,-500.0,0.00021917,2]
[402053135,1768498255659,-218.91903799,0.00021917,2]
[402053136,1768498256646,-741.38096201,0.00021917,2]
[402053137,1768498256656,-500.0,0.00021917,2]
[402053138,1768498256665,-500.0,0.00021917,2]
[402053139,1768498256675,-500.0,0.00021917,2]
[402053140,1768498256684,-505.15455852,0.00021917,2]
[402053141,1768498256694,-500.0,0.00021917,2]
[402053142,1768498256703,-500.0,0.00021917,2]
[402053143,1768498256713,-35.34447947,0.00021917,2]
[402053144,1768498256725,-165.14820627,0.00021917,2]
[402053145,1768498256734,-500.0,0.00021917,2]
[402053146,1768498256743,-500.0,0.00021917,2]
[402053147,1768498256753,-500.0,0.00021917,2]
[402053148,1768498256762,-617.44,0.00021917,2]
[402053149,1768498256771,-500.0,0.00021917,2]
[402053150,1768498256783,-535.82565247,0.00021917,2]
[402053151,1768498256792,-1580.2,0.00021917,2]
[402053152,1768498256801,-253.20040498,0.00021917,2]
[402053153,1768498257067,-2147.0,0.00014633,2]
[402053154,1768498257076,-91.86023305,0.00017633,2]
[402053155,1768498257090,-900.0,0.00017633,2]
[402053156,1768498257101,-1155.13976695,0.00017633,2]
[402053157,1768498257110,-2147.0,0.00020633,2]
[402053158,1768498257120,-246.79959502,0.00021917,2]
[402053159,1768498257129,-527.2570539,0.00021917,2]
[402053160,1768498257138,-500.0,0.00021917,2]
[402053161,1768498257148,-500.0,0.00021917,2]
[402053162,1768498257156,-1554.68320935,0.00021917,2]
[402053163,1768498258805,2004.0,9.45e-05,2]
[402053180,1768498502864,500.0,0.00027397,120]
[402053226,1768499407404,5000.0,9.451e-05,2]
[402053234,1768499431596,-1000.0,9.729e-05,2]
[402053235,1768499431649,-4000.0,9.729e-05,2]
[402053236,1768499431658,-174.0,0.00010022,2]
[402053237,1768499431668,-300.0,0.00010022,2]
[402053238,1768499431677,-300.0,0.00010022,2]
[402053239,1768499431686,-103161.81054418,0.00010023,2]
[402053271,1768499437652,-209.00302095,9.925e-05,2]
[402053273,1768499437662,-1322.27951781,0.00010023,2]
[402053277,1768499437714,-895515.90993801,0.00010023,2]
[402053278,1768499437724,-50000.0,0.00010122,2]
[402053279,1768499437733,-500.0,0.00010122,2]
[402053280,1768499437743,-500.0,0.00010122,2]
[402053281,1768499437752,-500.0,0.00010122,2]
[402053282,1768499437764,-500.0,0.00010122,2]
[402053283,1768499437773,-500.0,0.00010122,2]
[402053284,1768499437782,-500.0,0.00010122,2]
[402053285,1768499437791,-500.0,0.00010122,2]
[402053286,1768499437801,-500.0,0.00010122,2]
[402053287,1768499437810,-500.0,0.00010122,2]
[402053288,1768499437820,-500.0,0.00010122,2]
[402053289,1768499437830,-500.0,0.00010122,2]
[402053290,1768499437839,-439.72478743,0.00010122,2]
[402053291,1768499437847,-500.0,0.00010122,2]
[402053292,1768499437856,-500.0,0.00010122,2]
[402053293,1768499437865,-500.0,0.00010122,2]
[402053294,1768499437874,-500.0,0.00010122,2]
[402053295,1768499437883,-500.0,0.00010122,2]
[402053296,1768499437892,-500.0,0.00010122,2]
[402053297,1768499437901,-500.0,0.00010122,2]
[402053298,1768499437910,-500.0,0.00010122,2]
[402053299,1768499437919,-500.0,0.00010122,2]
[402053300,1768499437929,-500.0,0.00010122,2]
[402053301,1768499437938,-500.0,0.00010122,2]
[402053302,1768499437947,-500.0,0.00010122,2]
[402053303,1768499437956,-500.0,0.00010122,2]
[402053304,1768499437966,-500.0,0.00010122,2]
[402053305,1768499437975,-500.0,0.00010122,2]
[402053306,1768499437986,-500.0,0.00010122,2]
[402053307,1768499437995,-386.41522667,0.00010122,2]
[402053308,1768499438004,-500.0,0.00010122,2]
[402053309,1768499438014,-500.0,0.00010122,2]
[402053310,1768499438024,-500.0,0.00010122,2]
[402053311,1768499438033,-500.0,0.00010122,2]
[402053312,1768499438042,-500.0,0.00010122,2]
[402053313,1768499438051,-500.0,0.00010122,2]
[402053314,1768499438061,-500.0,0.00010122,2]
[402053315,1768499438070,-500.0,0.00010122,2]
[402053316,1768499438080,-500.0,0.00010122,2]
[402053317,1768499438089,-500.0,0.00010122,2]
[402053318,1768499438099,-500.0,0.00010122,2]
[402053319,1768499438108,-500.0,0.00010122,2]
[402053320,1768499438118,-598.72724631,0.00010122,2]
[402053321,1768499438128,-500.0,0.00010122,2]
[402053322,1768499438138,-500.0,0.00010122,2]
[402053323,1768499438148,-500.0,0.00010122,2]
[402053324,1768499438159,-500.0,0.00010122,2]
[402053325,1768499438169,-500.0,0.00010122,2]
[402053326,1768499438179,-500.0,0.00010122,2]
[402053327,1768499438189,-500.0,0.00010122,2]
[402053328,1768499438198,-500.0,0.00010122,2]
[402053329,1768499438208,-500.0,0.00010122,2]
[402053330,1768499438218,-500.0,0.00010122,2]
[402053331,1768499438228,-500.0,0.00010122,2]
[402053332,1768499438237,-500.0,0.00010122,2]
[402053333,1768499438247,-500.0,0.00010122,2]
[402053334,1768499438258,-500.0,0.00010122,2]
[402053335,1768499438267,-500.0,0.00010122,2]
[402053336,1768499438276,-500.0,0.00010122,2]
[402053337,1768499438288,-500.0,0.00010122,2]
[402053338,1768499438308,-500.0,0.00010122,2]
[402053339,1768499438318,-500.0,0.00010122,2]
[402053340,1768499438328,-500.0,0.00010122,2]
[402053341,1768499438337,-500.0,0.00010122,2]
[402053342,1768499438346,-500.0,0.00010122,2]
[402053343,1768499438357,-500.0,0.00010122,2]
[402053344,1768499438367,-500.0,0.00010122,2]
[402053345,1768499438377,-500.0,0.00010122,2]
[402053346,1768499438387,-500.0,0.00010122,2]
[402053347,1768499438398,-500.0,0.00010122,2]
[402053348,1768499438408,-500.0,0.00010122,2]
[402053349,1768499438418,-500.0,0.00010122,2]
[402053350,1768499438428,-500.0,0.00010122,2]
[402053351,1768499438438,-500.0,0.00010122,2]
[402053352,1768499438448,-500.0,0.00010122,2]
[402053353,1768499438457,-500.0,0.00010122,2]
[402053354,1768499438467,-500.0,0.00010122,2]
[402053355,1768499438476,-500.0,0.00010122,2]
[402053356,1768499438486,-500.0,0.00010122,2]
[402053357,1768499438495,-500.0,0.00010122,2]
[402053358,1768499438504,-500.0,0.00010122,2]
[402053359,1768499438516,-338.54521678,0.00010122,2]
[402053360,1768499438526,-500.0,0.00010122,2]
[402053361,1768499438535,-500.0,0.00010122,2]
[402053362,1768499438544,-300.0,0.00010122,2]
[402053363,1768499438553,-500.0,0.00010122,2]
[402053364,1768499438563,-500.0,0.00010122,2]
[402053365,1768499438573,-500.0,0.00010122,2]
[402053366,1768499438583,-500.0,0.00010122,2]
[402053367,1768499438592,-500.0,0.00010122,2]
[402053368,1768499438602,-500.0,0.00010122,2]
[402053369,1768499438611,-500.0,0.00010122,2]
[402053370,1768499438620,-500.0,0.00010122,2]
[402053371,1768499438630,-500.0,0.00010122,2]
[402053372,1768499438639,-500.0,0.00010122,2]
[402053373,1768499438648,-500.0,0.00010122,2]
[402053374,1768499438658,-500.0,0.00010122,2]
[402053375,1768499438667,-500.0,0.00010122,2]
[402053376,1768499438676,-382.43443657,0.00010122,2]
[402053377,1768499438685,-500.0,0.00010122,2]
[402053378,1768499438695,-500.0,0.00010122,2]
[402053379,1768499438705,-500.0,0.00010122,2]
[402053380,1768499438714,-500.0,0.00010122,2]
[402053381,1768499438723,-500.0,0.00010122,2]
[402053382,1768499438732,-500.0,0.00010122,2]
[402053383,1768499438742,-500.0,0.00010122,2]
[402053384,1768499438752,-500.0,0.00010122,2]
[402053385,1768499438765,-500.0,0.00010122,2]
[402053386,1768499438776,-219.72633017,0.00010122,2]
[402053387,1768499438787,-167.423,0.00010123,2]
[402053388,1768499438799,-500.0,0.00010126,2]
[402053389,1768499438808,-300.0,0.00010329,2]
[402053390,1768499438817,-300.0,0.00010329,2]
[402053391,1768499438827,-300.0,0.00010329,2]
[402053392,1768499438838,-300.0,0.00010329,2]
[402053393,1768499438848,-300.0,0.00010329,2]
[402053394,1768499438857,-300.0,0.00010329,2]
[402053395,1768499438867,-300.0,0.00010329,2]
[402053396,1768499438876,-300.0,0.00010329,2]
[402053397,1768499438886,-300.0,0.00010329,2]
[402053398,1768499438895,-300.0,0.00010329,2]
[402053399,1768499438904,-300.0,0.00010329,2]
[402053400,1768499438914,-300.0,0.00010329,2]
[402053401,1768499438923,-300.0,0.00010329,2]
[402053402,1768499438932,-300.0,0.00010329,2]
[402053403,1768499438943,-300.0,0.00010329,2]
[402053404,1768499438953,-600.0,0.00010329,2]
[402053405,1768499438964,-500.0,0.000104,2]
[402053406,1768499438975,-720.0,0.00011362,2]
[402053407,1768499438985,-246.62356472,0.00011925,2]
[402053408,1768499438995,-552.66256491,0.00012329,2]
[402053409,1768499439005,-864.0,0.00012498,2]
[402053410,1768499439015,-161.14886831,0.00013273,2]
[402053411,1768499439024,-500.0,0.00013273,2]
[402053412,1768499439033,-500.0,0.00013273,2]
[402053413,1768499439043,-500.0,0.00013273,2]
[402053414,1768499439052,-500.0,0.00013273,2]
[402053415,1768499439061,-567.64728941,0.00013698,2]
[402053416,1768499439071,-1000.0,0.00013699,2]
[402053417,1768499439080,-12252.8969936,0.00013699,2]
[402053418,1768499439090,-3950.5361061,0.00013699,2]
[402053419,1768499439100,-500.0,0.00013699,2]
[402053420,1768499439109,-1000.0,0.00013747,2]
[402053421,1768499439119,-1004.99784011,0.00013821,2]
[402053422,1768499439129,-1000.0,0.00013821,2]
[402053423,1768499439138,-284.24410849,0.00013925,2]
[402053424,1768499439148,-100000.0,0.00014152,2]
[402053425,1768499439158,-1146.4779887,0.00014247,2]
[402053426,1768499439168,-371.2,0.0001425,2]
[402053427,1768499439177,-1328.59178577,0.00014368,2]
[402053428,1768499439187,-3544.55380863,0.0001451,2]